bitfinex/quotes_ETHUSD_20250323
["timestamp","ask_amount","ask_price","bid_price","bid_amount"]
[1742745325904,7.58333297,2010.2,2010.1,4.79536712]
[1742745326317,6.76043297,2010.2,2010.1,4.79536712]
[1742745328518,7.58333297,2010.2,2010.1,4.79536712]
[1742745329526,10.51668266,2010.2,2010.1,4.79536712]
[1742745331827,9.69378266,2010.2,2010.1,4.79536712]
[1742745332029,13.51668266,2010.2,2010.1,7.12e-06]
[1742745332212,13.51668266,2010.2,2010.1,9.84e-06]
[1742745332415,5.79827,2009.9,2009.8,30.973]
[1742745333747,7.66644597,2009.9,2009.8,30.973]
[1742745334521,10.66644597,2009.9,2009.8,26.303]
[1742745336319,4.97537,2009.9,2009.8,26.303]
[1742745338656,5.73277,2009.9,2009.8,26.303]
[1742745339725,5.73277,2009.9,2009.8,26.42977958]
[1742745342157,4.97537,2009.9,2009.8,26.42977958]
[1742745347158,4.97537,2009.9,2009.8,0.12677958]
[1742745348389,4.97521,2010.0,2009.8,0.12677958]
[1742745348760,0.99743913,2010.4,2009.8,8.08542059]
[1742745348761,4.97466,2010.2,2009.8,8.08542059]
[1742745348956,4.97466,2010.2,2009.8,8.03566927]
[1742745349362,4.97492,2010.1,2009.8,3.06012927]
[1742745349781,4.97515,2010.0,2009.8,3.06012927]
[1742745350782,4.97537,2009.9,2009.8,0.12677958]
[1742745354885,5.76097,2009.9,2009.8,0.12677958]
[1742745356094,4.97537,2009.9,2009.8,0.12677958]
[1742745356864,8.69431969,2009.9,2009.8,0.12677958]
[1742745358686,11.69431969,2009.9,2009.8,0.12677958]
[1742745358864,13.89526355,2009.9,2009.8,0.12677958]
[1742745360500,13.89526355,2009.9,2009.8,9.58e-06]
[1742745360799,13.89526355,2009.9,2009.8,0.11405493]
[1742745361800,4.97586,2009.7,2009.6,4.67]
[1742745363773,4.97636,2009.5,2009.4,26.306]
[1742745363973,6.84445797,2009.5,2009.4,26.306]
[1742745368285,6.84445797,2009.5,2009.4,26.42366524]
[1742745370215,9.77780766,2009.5,2009.4,26.42366524]
[1742745371701,20.23830766,2009.5,2009.4,5.24e-06]
[1742745371880,4.97784,2008.9,2008.8,4.67]
[1742745372791,4.97834,2008.7,2008.6,26.309]
[1742745373003,4.97834,2008.7,2008.6,30.979]
[1742745373813,0.7705,2008.8,2008.0,4.97999]
[1742745374019,4.97908,2008.4,2008.3,26.31]
[1742745376221,4.97908,2008.4,2008.3,30.981]
[1742745387913,0.8132,2009.1,2008.5,4.9787]
[1742745388116,4.97743,2009.1,2008.7,2.93334969]
[1742745388321,0.8132,2009.3,2008.8,4.672]
[1742745388322,4.97784,2008.9,2008.8,4.672]
[1742745389843,4.97784,2008.9,2008.5,2.93334969]
[1742745389844,4.97842,2008.7,2008.3,39.20187969]
[1742745390025,4.97842,2008.7,2008.4,4.672]
[1742745390547,4.97842,2008.7,2008.4,9.65107]
[1742745392959,4.97842,2008.7,2008.4,4.672]
[1742745393165,9.95691,2008.7,2008.5,4.672]
[1742745395259,4.97842,2008.7,2008.5,4.672]
[1742745395461,9.95695,2008.7,2008.5,4.672]
[1742745395961,4.97842,2008.7,2008.5,4.672]
[1742745396155,4.97859,2008.6,2008.5,4.672]
[1742745396363,9.95693,2008.7,2008.5,4.672]
[1742745396765,4.97859,2008.6,2008.5,4.672]
[1742745397346,4.97842,2008.7,2008.5,4.672]
[1742745397747,9.95694,2008.7,2008.5,4.672]
[1742745398266,9.95691,2008.7,2008.5,4.672]
[1742745399068,4.97859,2008.6,2008.5,4.672]
[1742745399232,4.97842,2008.7,2008.5,4.672]
[1742745399662,4.97859,2008.6,2008.5,4.672]
[1742745399868,4.97859,2008.6,2008.5,30.991]
[1742745408948,5.79699,2008.6,2008.5,30.991]
[1742745409350,7.27501546,2008.6,2008.5,30.991]
[1742745410482,5.79699,2008.6,2008.5,30.991]
[1742745412206,4.97859,2008.6,2008.5,30.991]
[1742745422593,4.97819,2008.8,2008.5,33.92434969]
[1742745422812,4.97813,2008.8,2008.5,38.90310969]
[1742745423105,4.97763,2009.0,2008.7,1.76107308]
[1742745423263,4.978,2008.9,2008.7,1.76107308]
[1742745423758,4.97809,2008.8,2008.7,1.76107308]
[1742745424962,4.97809,2008.8,2008.6,2.93520649]
[1742745425992,9.95635,2008.8,2008.6,2.93520649]
[1742745426567,9.95635,2008.8,2008.5,30.991]
[1742745427286,4.97809,2008.8,2008.5,30.991]
[1742745427697,9.95637,2008.8,2008.5,30.991]
[1742745428007,4.97809,2008.8,2008.5,35.96982]
[1742745428367,9.95636,2008.8,2008.5,30.991]
[1742745429565,4.97836,2008.7,2008.5,30.991]
[1742745430087,9.95634,2008.8,2008.5,30.991]
[1742745431998,4.9784,2008.7,2008.5,30.991]
[1742745432196,9.95696,2008.7,2008.5,30.991]
[1742745432571,4.97859,2008.6,2008.5,30.991]
[1742745432779,4.97859,2008.6,2008.5,30.99]
[1742745434698,9.95638,2008.8,2008.5,30.99]
[1742745434865,4.97813,2008.8,2008.5,30.99]
[1742745435216,7.97736,2009.1,2008.7,4.97819]
[1742745435217,4.97748,2009.1,2008.7,4.97819]
[1742745435418,4.97748,2009.1,2008.8,2.93520649]
[1742745435565,4.97712,2009.2,2009.0,2.93520649]
[1742745436397,4.97696,2009.3,2009.0,2.93520649]
[1742745436580,4.9771,2009.2,2009.0,2.93520649]
[1742745438189,4.9771,2009.2,2009.0,2.98497737]
[1742745439823,9.95397,2009.3,2009.0,2.98497737]
[1742745440025,4.97663,2009.4,2009.2,2.93520649]
[1742745440323,4.97663,2009.4,2009.3,30.988]
[1742745441880,5.75573,2009.4,2009.3,26.317]
[1742745442208,5.75573,2009.4,2009.3,30.988]
[1742745442411,7.62007765,2009.4,2009.3,30.988]
[1742745447546,7.62007765,2009.4,2009.3,4.671]
[1742745452139,10.55528414,2009.4,2009.3,4.671]
[1742745452825,10.55528414,2009.4,2009.0,26.314]
[1742745452826,4.97735,2009.1,2009.0,26.314]
[1742745453008,4.97735,2009.1,2009.0,30.984]
[1742745453009,5.74815,2009.1,2009.0,30.984]
[1742745453832,4.97735,2009.1,2009.0,30.984]
[1742745457324,4.97715,2009.2,2009.0,30.984]
[1742745457748,4.97688,2009.3,2009.0,38.89677649]
[1742745465456,9.95392,2009.3,2009.0,33.91920649]
[1742745465634,4.97688,2009.3,2009.0,33.91920649]
[1742745466834,9.9539,2009.3,2009.0,33.91920649]
[1742745467458,4.9771,2009.2,2009.0,33.91920649]
[1742745467841,4.97735,2009.1,2009.0,33.91920649]
[1742745468439,4.97735,2009.1,2009.0,30.984]
[1742745468642,4.97735,2009.1,2009.0,26.314]
[1742745468840,4.97735,2009.1,2009.0,30.984]
[1742745469348,5.73695,2009.1,2009.0,30.984]
[1742745470342,5.73695,2009.1,2009.0,26.314]
[1742745470572,5.73695,2009.1,2009.0,30.984]
[1742745475774,7.306046,2009.1,2009.0,26.314]
[1742745475980,7.306046,2009.1,2009.0,30.984]
[1742745479778,9.95444,2009.2,2009.0,32.74493046]
[1742745480077,4.9771,2009.2,2009.1,1.76093046]
[1742745480252,9.95443,2009.2,2009.0,32.74493046]
[1742745480452,4.97735,2009.1,2009.0,32.74493046]
[1742745481776,4.9771,2009.2,2009.0,32.74493046]
[1742745481978,4.9771,2009.2,2009.1,1.76093046]
[1742745482277,9.9543,2009.2,2009.0,32.74493046]
[1742745482478,9.95338,2009.4,2009.1,1.76093046]
[1742745482783,4.97664,2009.4,2009.2,1.76093046]
[1742745482973,4.97664,2009.4,2009.1,2.93352481]
[1742745483193,9.95341,2009.4,2009.1,2.93352481]
[1742745483365,4.97664,2009.4,2009.1,2.93352481]
[1742745484265,4.97695,2009.3,2009.1,2.93352481]
[1742745486200,4.97664,2009.4,2009.1,2.93352481]
[1742745486400,9.95341,2009.4,2009.1,2.93352481]
[1742745486906,4.97688,2009.3,2009.1,2.93352481]
[1742745487700,4.97688,2009.3,2009.0,30.984]
[1742745488000,4.97735,2009.1,2009.0,26.314]
[1742745488196,4.97735,2009.1,2009.0,30.983]
[1742745489106,4.97711,2009.2,2009.0,30.983]
[1742745489409,4.97689,2009.3,2009.1,2.93352481]
[1742745489594,4.97662,2009.4,2009.1,2.93352481]
[1742745489902,9.95345,2009.4,2009.1,2.93352481]
[1742745490307,4.97662,2009.4,2009.1,7.91086481]
[1742745491611,4.97662,2009.4,2009.1,7.96063108]
[1742745492978,4.97662,2009.4,2009.1,7.91086481]
[1742745493816,9.9534,2009.4,2009.1,2.93352481]
[1742745494312,4.97662,2009.4,2009.1,2.93352481]
[1742745494482,4.97662,2009.4,2009.1,2.9832911]
[1742745494681,4.97662,2009.4,2009.1,2.93352481]
[1742745495410,9.95341,2009.4,2009.1,2.9832911]
[1742745495611,9.95341,2009.4,2009.1,2.93352481]
[1742745496324,9.95341,2009.4,2009.2,26.312]
[1742745497124,4.97662,2009.4,2009.2,26.312]
[1742745497425,4.97685,2009.3,2009.2,26.312]
[1742745497808,9.95342,2009.4,2009.2,26.312]
[1742745498924,4.97662,2009.4,2009.2,26.312]
[1742745501214,4.97662,2009.4,2009.3,26.312]
[1742745502596,9.9529,2009.5,2009.3,26.312]
[1742745502796,9.9529,2009.5,2009.4,4.669]
[1742745503009,9.95233,2009.6,2009.4,4.669]
[1742745503206,4.97597,2009.7,2009.4,4.669]
[1742745503405,9.95207,2009.7,2009.4,4.71876047]
[1742745503828,4.97597,2009.7,2009.4,4.71876047]
[1742745504037,4.97597,2009.7,2009.4,4.669]
[1742745504326,4.97597,2009.7,2009.4,9.64558]
[1742745504499,4.97597,2009.7,2009.4,9.69533876]
[1742745505031,4.97597,2009.7,2009.5,1.75959152]
[1742745505328,9.95199,2009.7,2009.5,1.75959152]
[1742745505529,4.97611,2009.6,2009.4,6.42859152]
[1742745507421,4.97597,2009.7,2009.4,11.45495157]
[1742745507604,4.97597,2009.7,2009.4,11.40519152]
[1742745508930,9.95198,2009.7,2009.4,11.40519152]
[1742745509131,4.97597,2009.7,2009.4,11.40519152]
[1742745509534,9.95198,2009.7,2009.4,11.40519152]
[1742745509931,4.97597,2009.7,2009.4,11.40519152]
[1742745510243,4.97616,2009.6,2009.3,26.312]
[1742745510400,4.9765,2009.5,2009.4,4.668]
[1742745514907,4.9766,2009.4,2009.3,26.312]
[1742745515108,4.9766,2009.4,2009.3,30.98]
[1742745516234,4.9765,2009.5,2009.3,30.98]
[1742745516436,4.9765,2009.5,2009.3,32.73959152]
[1742745516610,4.9765,2009.5,2009.3,30.98]
[1742745517014,4.9765,2009.5,2009.3,32.73959152]
[1742745517540,4.9765,2009.5,2009.3,30.98]
[1742745517731,9.95301,2009.5,2009.3,30.98]
[1742745518040,4.9765,2009.5,2009.3,30.98]
[1742745518941,9.95303,2009.5,2009.3,30.98]
[1742745519317,9.95301,2009.5,2009.3,30.98]
[1742745519741,4.9765,2009.5,2009.3,30.98]
[1742745520421,4.9765,2009.5,2009.4,26.309]
[1742745525731,5.72985,2009.6,2009.4,26.309]
[1742745525946,4.97591,2009.7,2009.4,33.04503152]
[1742745525947,4.97589,2009.7,2009.4,33.04503152]
[1742745526114,9.95144,2009.8,2009.4,33.04503152]
[1742745526540,4.97564,2009.8,2009.4,33.04503152]
[1742745526847,9.95144,2009.8,2009.4,33.04503152]
[1742745527212,4.97539,2009.9,2009.6,1.75959152]
[1742745527425,5.72884,2010.0,2009.7,12.12677148]
[1742745527426,4.97514,2010.0,2009.7,12.12677148]
[1742745527749,4.97514,2010.0,2009.7,12.07699667]
[1742745530551,4.97514,2010.0,2009.7,7.10117667]
[1742745532548,9.95047,2010.0,2009.7,7.10117667]
[1742745532855,9.95047,2010.0,2009.8,0.74813171]
[1742745533051,4.9755,2009.9,2009.7,4.668]
[1742745533344,4.97513,2010.0,2009.7,4.668]
[1742745533345,9.95044,2010.0,2009.7,4.668]
[1742745534327,1.75959152,2010.1,2009.7,4.668]
[1742745534328,9.94994,2010.1,2009.7,11.40332152]
[1742745534648,4.97514,2010.0,2009.7,11.40332152]
[1742745534852,4.97514,2010.0,2009.7,9.64373]
[1742745536660,4.97514,2010.0,2009.7,4.668]
[1742745540155,9.95045,2010.0,2009.7,4.668]
[1742745540355,4.97561,2009.8,2009.4,33.04519152]
[1742745540548,4.97539,2009.9,2009.5,9.64225]
[1742745540749,9.95093,2009.9,2009.5,9.64225]
[1742745541060,9.95093,2009.9,2009.5,11.40184152]
[1742745541354,4.97539,2009.9,2009.5,11.40184152]
[1742745541523,4.97539,2009.9,2009.6,6.73566152]
[1742745541946,9.95093,2009.9,2009.5,11.40184152]
[1742745542125,4.97539,2009.9,2009.5,11.40184152]
[1742745542337,4.97539,2009.9,2009.5,16.37809152]
[1742745542529,4.97539,2009.9,2009.5,16.37810152]
[1742745543662,9.95092,2009.9,2009.5,11.40184152]
[1742745543840,4.97539,2009.9,2009.5,11.40182152]
[1742745544025,4.97539,2009.9,2009.6,4.97608]
[1742745544230,1.75959152,2009.7,2009.4,26.309]
[1742745544432,6.73595152,2009.5,2009.4,26.309]
[1742745544651,4.97636,2009.5,2009.4,30.975]
[1742745545768,7.91046968,2009.5,2009.4,30.975]
[1742745546760,7.91046968,2009.5,2009.4,26.309]
[1742745546975,7.91046968,2009.5,2009.4,30.975]
[1742745549037,9.77347665,2009.5,2009.4,30.975]
[1742745549660,10.59267665,2009.5,2009.4,30.975]
[1742745554942,10.59267665,2009.5,2009.4,26.309]
[1742745559199,7.65856697,2009.5,2009.4,26.309]
[1742745561304,4.9766,2009.4,2009.3,4.667]
[1742745562793,7.0685461,2009.4,2009.3,4.667]
[1742745566278,4.97685,2009.3,2009.2,26.311]
[1742745566478,8.73425,2009.3,2009.2,26.311]
[1742745566679,8.73425,2009.3,2009.2,30.978]
[1742745566875,10.49543085,2009.3,2009.2,30.978]
[1742745567108,13.11188333,2009.3,2009.2,30.978]
[1742745569282,13.11188333,2009.3,2009.2,26.311]
[1742745573696,4.9766,2009.4,2009.2,28.07218085]
[1742745573996,4.9766,2009.4,2009.3,4.667]
[1742745574726,11.11637,2009.5,2009.3,4.667]
[1742745574930,11.11637,2009.5,2009.3,4.71676303]
[1742745576450,6.14,2009.5,2009.3,6.47794388]
[1742745576607,4.976,2009.7,2009.4,1.76118085]
[1742745576948,4.97563,2009.8,2009.5,5.02589908]
[1742745578459,9.95048,2010.0,2009.6,7.90845013]
[1742745578752,8.92130046,2010.2,2009.7,4.667]
[1742745578960,4.97561,2009.8,2009.7,4.667]
[1742745579934,4.97623,2009.6,2009.2,26.311]
[1742745580258,4.9766,2009.4,2009.3,4.667]
[1742745582054,4.97649,2009.5,2009.3,4.667]
[1742745582055,9.95301,2009.5,2009.3,4.667]
[1742745582259,4.97649,2009.5,2009.3,4.667]
[1742745583243,9.95302,2009.5,2009.3,4.667]
[1742745583459,4.9766,2009.4,2009.3,4.667]
[1742745584863,4.97649,2009.5,2009.3,4.667]
[1742745586362,4.9766,2009.4,2009.3,4.667]
[1742745586866,4.97649,2009.5,2009.3,4.667]
[1742745587395,4.97649,2009.5,2009.3,4.71676328]
[1742745587672,9.95243,2009.6,2009.3,4.667]
[1742745590991,9.95298,2009.5,2009.3,4.667]
[1742745592393,4.97644,2009.5,2009.3,4.667]
[1742745593198,9.95296,2009.5,2009.3,4.667]
[1742745594802,4.9766,2009.4,2009.3,4.667]
[1742745596107,4.97644,2009.5,2009.3,4.667]
[1742745596909,4.97644,2009.5,2009.4,26.308]
[1742745600719,4.97614,2009.6,2009.4,26.308]
[1742745601380,4.97636,2009.5,2009.4,26.308]
[1742745601583,4.97614,2009.6,2009.4,26.308]
[1742745602077,4.97636,2009.5,2009.4,26.308]
[1742745602809,4.97614,2009.6,2009.4,26.308]
[1742745603013,4.97616,2009.6,2009.4,29.24040013]
[1742745603712,9.95246,2009.6,2009.4,29.24040013]
[1742745603920,4.97636,2009.5,2009.4,26.308]
[1742745604127,9.95243,2009.6,2009.4,26.308]
[1742745604299,4.97616,2009.6,2009.4,26.308]
[1742745605414,4.97587,2009.7,2009.4,26.308]
[1742745605616,4.97587,2009.7,2009.5,0.04976087]
[1742745605820,4.97587,2009.7,2009.4,29.24040013]
[1742745605989,4.97636,2009.5,2009.4,26.308]
[1742745607004,4.97618,2009.6,2009.4,26.308]
[1742745607406,9.95246,2009.6,2009.4,26.308]
[1742745608311,4.97618,2009.6,2009.4,26.308]
[1742745608719,5.76191,2009.7,2009.4,26.308]
[1742745608913,9.95199,2009.7,2009.4,26.308]
[1742745609243,4.97591,2009.7,2009.4,26.308]
[1742745609755,9.95246,2009.6,2009.4,26.308]
[1742745610404,4.97636,2009.5,2009.4,26.308]
[1742745612540,4.97636,2009.5,2009.4,30.973]
[1742745612727,7.54843801,2009.5,2009.4,30.973]
[1742745617246,5.76236,2009.5,2009.4,30.973]
[1742745623255,5.76236,2009.5,2009.4,26.308]
[1742745634272,8.76236,2009.5,2009.4,26.308]
[1742745635383,4.9771,2009.2,2009.1,4.666]
[1742745635689,4.97828,2008.8,2008.4,7.979]
[1742745635856,4.97825,2008.8,2008.5,30.978]
[1742745636192,4.97849,2008.7,2008.5,26.312]
[1742745636385,4.97859,2008.6,2008.5,26.312]
[1742745636589,4.97859,2008.6,2008.5,30.978]
[1742745639061,4.97839,2008.7,2008.5,30.978]
[1742745639589,4.97859,2008.6,2008.5,30.978]
[1742745641091,4.97839,2008.7,2008.5,30.978]
[1742745641494,4.97859,2008.6,2008.5,30.978]
[1742745645295,4.9776,2009.0,2008.5,33.91040013]
[1742745645465,4.97796,2008.9,2008.7,2.93240013]
[1742745645663,4.97796,2008.9,2008.8,26.317]
[1742745651008,4.9783,2008.8,2008.7,4.666]
[1742745658213,4.97834,2008.7,2008.6,26.317]
[1742745658376,4.97834,2008.7,2008.6,30.983]
[1742745658578,4.97834,2008.7,2008.6,26.317]
[1742745670429,4.9783,2008.8,2008.6,26.317]
[1742745670609,4.97834,2008.7,2008.6,26.317]
[1742745672031,4.9783,2008.8,2008.6,26.317]
[1742745672233,4.97763,2009.0,2008.6,34.22784013]
[1742745672409,9.95541,2009.0,2008.6,34.22784013]
[1742745672614,4.97787,2008.9,2008.6,34.22784013]
[1742745672813,4.9776,2009.0,2008.6,26.317]
[1742745673017,4.97834,2008.7,2008.6,26.317]
[1742745677939,4.97834,2008.7,2008.6,30.983]
[1742745679418,4.97834,2008.7,2008.6,26.317]
[1742745679620,4.97834,2008.7,2008.6,30.983]
[1742745680764,5.75644,2008.7,2008.6,30.983]
[1742745682624,4.97834,2008.7,2008.6,30.983]
[1742745686853,6.74018056,2008.7,2008.6,30.983]
[1742745688769,8.85757249,2008.7,2008.6,26.317]
[1742745694774,8.85757249,2008.7,2007.9,4.98028]
[1742745694775,4.97908,2008.4,2008.3,30.987]
[1742745694969,6.74092056,2008.4,2008.3,30.987]
[1742745695181,7.51702056,2008.4,2008.3,26.321]
[1742745696167,4.98032,2007.9,2007.8,6.08]
[1742745696486,4.98032,2007.9,2007.8,30.988]
[1742745698302,7.91893426,2007.9,2007.8,30.988]
[1742745698877,7.91893426,2007.9,2007.8,26.322]
[1742745699083,7.91893426,2007.9,2007.8,30.988]
[1742745702013,4.98032,2007.9,2007.8,30.988]
[1742745706082,7.91893426,2007.9,2007.8,30.988]
[1742745706288,9.28645469,2007.9,2007.8,30.988]
[1742745711305,7.91893426,2007.9,2007.8,30.988]
[1742745713142,4.98032,2007.9,2007.8,30.988]
[1742745713909,8.72873426,2007.9,2007.8,26.322]
[1742745714217,8.72873426,2007.9,2007.8,30.988]
[1742745714422,10.59760869,2007.9,2007.8,26.322]
[1742745716447,9.78780869,2007.9,2007.8,26.322]
[1742745716829,8.61251626,2007.9,2007.8,26.322]
[1742745720151,4.98057,2007.8,2007.7,4.666]
[1742745721364,8.60121746,2007.8,2007.7,4.666]
[1742745722064,6.83789563,2007.8,2007.7,4.666]
[1742745722262,8.60121746,2007.8,2007.7,4.666]
[1742745722444,6.83789563,2007.8,2007.7,4.666]
[1742745726536,8.60121746,2007.8,2007.7,4.666]
[1742745727563,11.60121746,2007.8,2007.7,4.666]
[1742745734073,4.98082,2007.7,2007.6,26.331]
[1742745734279,8.97989758,2007.7,2007.6,26.331]
[1742745734472,7.21657575,2007.7,2007.6,26.331]
[1742745738764,8.97989758,2007.7,2007.6,26.331]
[1742745739383,4.98107,2007.6,2007.5,31.0]
[1742745739587,6.74439183,2007.6,2007.5,31.0]
[1742745739753,4.98107,2007.6,2007.5,31.0]
[1742745742290,7.52749183,2007.6,2007.5,31.0]
[1742745742491,9.98568815,2007.6,2007.5,31.0]
[1742745742794,4.9842,2006.4,2006.0,4.98494]
[1742745742976,4.9842,2006.4,2005.9,1.49677]
[1742745742977,6.74713183,2006.5,2006.3,0.14336217]
[1742745743290,4.98405,2006.4,2006.3,0.14336217]
[1742745744162,4.98405,2006.4,2006.3,4.80936217]
[1742745744996,4.98405,2006.4,2006.3,4.81036217]
[1742745745360,9.79485285,2006.4,2006.3,0.14336217]
[1742745745560,7.92709714,2006.4,2006.3,0.14336217]
[1742745748703,4.98405,2006.4,2006.3,0.14336217]
[1742745749291,4.98362,2006.6,2006.3,0.14336217]
[1742745749495,4.98396,2006.5,2006.3,0.14336217]
[1742745749692,9.96795,2006.5,2006.3,0.14336217]
[1742745750003,4.98405,2006.4,2006.3,0.14336217]
[1742745750796,0.7674,2006.9,2006.3,5.12751217]
[1742745751001,9.96697,2006.7,2006.3,14.97505288]
[1742745751383,4.984,2006.5,2006.3,6.26336217]
[1742745751784,4.984,2006.5,2006.4,4.668]
[1742745752008,4.984,2006.5,2006.4,4.67778397]
[1742745753395,4.984,2006.5,2006.4,0.00978397]
[1742745753590,7.92704714,2006.5,2006.4,4.668]
[1742745753794,9.79318685,2006.5,2006.4,4.81279759]
[1742745754191,6.85013971,2006.5,2006.4,4.81279759]
[1742745755917,6.85013971,2006.5,2006.4,0.14479759]
[1742745756119,6.85013971,2006.5,2006.4,4.81279759]
[1742745757422,4.984,2006.5,2006.4,4.81279759]
[1742745757617,4.98365,2006.6,2006.4,4.81279759]
[1742745757790,4.9838,2006.5,2006.4,4.81279759]
[1742745758736,4.9838,2006.5,2006.4,31.15979759]
[1742745759831,4.98365,2006.6,2006.4,31.15979759]
[1742745759832,9.9674,2006.6,2006.4,31.15979759]
[1742745760032,4.98365,2006.6,2006.4,31.15979759]
[1742745761135,4.9838,2006.5,2006.4,31.15979759]
[1742745762326,4.98377,2006.6,2006.4,31.15979759]
[1742745762633,9.96754,2006.6,2006.4,31.15979759]
[1742745762934,4.9838,2006.5,2006.4,31.15979759]
[1742745780228,6.15708426,2006.5,2006.4,31.15979759]
[1742745781558,6.92948426,2006.5,2006.4,31.15979759]
[1742745786543,4.9838,2006.5,2006.4,31.15979759]
[1742745787066,4.98377,2006.6,2006.4,31.15979759]
[1742745787366,4.98371,2006.6,2006.4,31.15979759]
[1742745788166,9.96743,2006.6,2006.4,31.15979759]
[1742745788672,9.96746,2006.6,2006.4,31.15979759]
[1742745788969,4.98371,2006.6,2006.4,31.15979759]
[1742745789367,9.96746,2006.6,2006.4,31.15979759]
[1742745789662,4.9838,2006.5,2006.4,31.15979759]
[1742745791646,4.9838,2006.5,2006.4,26.49179759]
[1742745791851,8.7661,2006.5,2006.4,26.347]
[1742745796885,9.3161,2006.5,2006.4,26.347]
[1742745800975,5.76789,2006.3,2006.2,0.0903264]
[1742745801157,10.63905076,2006.3,2006.2,0.0903264]
[1742745801355,10.63905076,2006.3,2006.2,0.10090536]
[1742745801878,13.63905076,2006.3,2006.2,0.10090536]
[1742745803868,14.18905076,2006.3,2006.2,0.10090536]
[1742745804182,11.246474,2006.3,2006.2,0.00846424]
[1742745804345,11.246474,2006.3,2006.0,26.351]
[1742745804546,8.71096676,2006.1,2006.0,26.351]
[1742745805048,8.71096676,2006.1,2006.0,26.36025938]
[1742745810898,7.53505196,2006.1,2006.0,26.36025938]
[1742745813669,7.53505196,2006.1,2006.0,26.46502852]
[1742745814799,7.53505196,2006.1,2006.0,26.49353565]
[1742745815005,8.94144056,2006.1,2006.0,26.49353565]
[1742745820107,8.94144056,2006.1,2006.0,0.14253565]
[1742745822115,7.1747786,2006.1,2006.0,0.14253565]
[1742745822315,4.98479,2006.1,2006.0,0.14253565]
[1742745823214,6.75145196,2006.1,2006.0,0.14253565]
[1742745825918,7.54245196,2006.1,2006.0,0.14253565]
[1742745826217,10.54245196,2006.1,2006.0,0.14253565]
[1742745827013,11.09245196,2006.1,2006.0,0.14253565]
[1742745827213,13.58318056,2006.1,2006.0,0.00741315]
[1742745827402,7.98554,2005.8,2005.7,26.357]
[1742745827614,9.75220196,2005.8,2005.7,26.357]
[1742745834653,4.98628,2005.5,2005.4,4.669]
[1742745835134,4.98653,2005.4,2005.3,26.359]
[1742745835334,4.98628,2005.5,2005.3,31.028]
[1742745835518,9.97278,2005.5,2005.3,31.028]
[1742745835719,4.98653,2005.4,2005.3,31.028]
[1742745836508,4.98584,2005.7,2005.3,34.21638882]
[1742745836712,3.0,2005.8,2005.4,1.76666196]
[1742745836713,4.98615,2005.6,2005.4,1.76666196]
[1742745837014,9.9724,2005.6,2005.3,32.79466196]
[1742745837246,4.9863,2005.5,2005.3,31.028]
[1742745837912,4.98653,2005.4,2005.3,31.028]
[1742745840542,4.9863,2005.5,2005.3,32.79466196]
[1742745840922,9.97222,2005.6,2005.3,32.79466196]
[1742745841122,4.98635,2005.5,2005.3,32.79466196]
[1742745842838,4.98606,2005.6,2005.3,32.79466196]
[1742745843046,4.98606,2005.6,2005.3,31.028]
[1742745843222,4.98606,2005.6,2005.3,32.79466196]
[1742745844352,4.98638,2005.5,2005.3,32.79466196]
[1742745844651,4.98606,2005.6,2005.3,32.79466196]
[1742745844953,9.97231,2005.6,2005.3,32.79466196]
[1742745845149,4.98606,2005.6,2005.3,32.79466196]
[1742745845380,4.98588,2005.7,2005.5,1.76666196]
[1742745845523,1.928584,2006.3,2005.6,6.80245933]
[1742745845721,4.98541,2005.9,2005.7,6.43566196]
[1742745845948,4.98554,2005.8,2005.7,4.669]
[1742745846952,1.76666196,2006.1,2005.7,9.65476]
[1742745846953,4.98507,2006.0,2005.7,9.65476]
[1742745847953,4.98507,2006.0,2005.8,0.04985016]
[1742745848147,4.98479,2006.1,2005.9,4.669]
[1742745848531,4.98504,2006.0,2005.9,4.669]
[1742745850042,4.98504,2006.0,2005.9,31.028]
[1742745852253,4.98504,2006.0,2005.9,26.359]
[1742745852455,4.98504,2006.0,2005.9,31.028]
[1742745854257,6.85394133,2006.0,2005.9,31.028]
[1742745856657,4.98504,2006.0,2005.9,26.359]
[1742745857245,4.98479,2006.1,2005.9,26.359]
[1742745857246,4.98479,2006.1,2005.9,29.30258331]
[1742745857538,4.98504,2006.0,2005.9,26.359]
[1742745857738,4.98504,2006.0,2005.9,31.027]
[1742745859470,4.98504,2006.0,2005.9,26.359]
[1742745859675,4.98504,2006.0,2005.9,31.027]
[1742745859876,9.96975,2006.1,2005.9,31.027]
[1742745860178,4.98479,2006.1,2005.9,31.027]
[1742745860371,0.8231,2006.7,2006.0,4.9848]
[1742745860573,4.98415,2006.4,2006.1,2.94358331]
[1742745860780,4.9843,2006.3,2006.1,2.94358331]
[1742745861457,4.9843,2006.3,2006.0,10.9948]
[1742745861870,4.9843,2006.3,2006.0,6.01]
[1742745862071,9.96876,2006.3,2006.0,6.01]
[1742745862276,4.98462,2006.2,2006.0,6.01]
[1742745862781,4.9843,2006.3,2006.0,6.01]
[1742745864182,9.96876,2006.3,2006.0,6.01]
[1742745864362,4.98457,2006.2,2006.0,6.01]
[1742745864983,4.9843,2006.3,2006.0,6.01]
[1742745865379,0.8231,2006.5,2006.0,6.01]
[1742745865380,4.98462,2006.2,2006.0,6.01]
[1742745866383,4.98433,2006.3,2006.0,6.01]
[1742745866582,4.98433,2006.3,2006.0,6.05984436]
[1742745867062,9.96882,2006.3,2006.0,6.01]
[1742745867263,4.98461,2006.2,2006.0,6.01]